bitfinex-derivatives/quotes_ETHF0:USTF0_20240905
["timestamp","ask_amount","ask_price","bid_price","bid_amount"]
[1725533025515,0.41748,2395.4,2395.1,0.56416566]
[1725533025516,3.2078,2395.5,2395.3,0.41749]
[1725533025723,3.62528,2395.5,2395.3,0.41749]
[1725533025923,0.41748,2395.4,2395.3,0.41749]
[1725533026216,3.62528,2395.5,2395.4,0.41748]
[1725533026617,3.62528,2395.5,2395.1,0.56416566]
[1725533026821,3.62528,2395.5,2395.4,0.41748]
[1725533027126,0.41743,2395.8,2395.3,2.89]
[1725533027319,0.5164,2395.9,2395.5,2.89]
[1725533027513,0.9338,2395.9,2395.7,0.41742]
[1725533028009,0.5164,2395.9,2395.8,0.41741]
[1725533028209,3.2078,2396.1,2396.0,0.41738]
[1725533028419,3.2078,2396.1,2395.9,0.41738]
[1725533029221,3.2078,2396.1,2396.0,0.41738]
[1725533034324,3.2078,2396.1,2395.7,0.5578]
[1725533034631,3.2078,2396.1,2396.0,0.41738]
[1725533039633,3.2078,2396.1,2396.0,10.59098]
[1725533039830,0.5525,2396.9,2396.1,1.04339]
[1725533040035,0.41725,2396.8,2396.6,0.41727]
[1725533040245,0.41727,2396.7,2396.5,3.31354566]
[1725533041339,0.41727,2396.6,2396.5,0.00626566]
[1725533041841,5.63326,2396.6,2396.5,0.00626566]
[1725533042026,1.46046,2396.6,2396.5,0.00626566]
[1725533042232,5.63326,2396.6,2396.5,0.00626566]
[1725533042442,4.59007,2396.6,2396.5,0.00626566]
[1725533042832,0.41727,2396.6,2396.5,0.00626566]
[1725533045637,6.21897,2396.6,2396.5,0.00626566]
[1725533045946,6.21897,2396.6,2395.9,43.69]
[1725533045947,19.53452975,2396.6,2395.1,3.2078]
[1725533046142,0.41751,2395.3,2395.1,3.7782]
[1725533046441,0.41749,2395.4,2395.1,0.5704]
[1725533046740,0.4175,2395.4,2395.1,0.98792]
[1725533047039,0.41751,2395.3,2395.0,0.42381566]
[1725533047243,0.41751,2395.3,2395.1,0.41753]
[1725533047444,0.41751,2395.3,2395.0,0.00626566]
[1725533047445,0.41751,2395.3,2395.0,0.42380566]
[1725533047940,3.2078,2395.4,2395.0,0.00626566]
[1725533047941,3.62529,2395.4,2395.0,0.00626566]
[1725533048141,0.54846566,2395.5,2395.3,0.4175]
[1725533048336,0.96593566,2395.5,2395.2,0.41751]
[1725533048532,0.54846566,2395.5,2395.0,2.89626566]
[1725533048730,0.41748,2395.4,2395.2,0.41751]
[1725533050244,0.00626566,2395.5,2395.4,0.41748]
[1725533050443,0.00626566,2395.5,2395.4,7.63368]
[1725533050633,0.00626566,2395.5,2395.4,11.80808]
[1725533051046,0.00626566,2395.5,2395.4,17.80808]
[1725533051340,0.00626566,2395.5,2395.4,18.85179]
[1725533052846,0.00626566,2395.5,2395.4,11.80808]
[1725533055043,3.2078,2396.1,2395.4,17.3906]
[1725533055247,3.2078,2396.1,2396.0,0.41738]
[1725533055442,0.41735,2396.2,2396.0,0.41738]
[1725533055852,0.41735,2396.2,2395.8,0.41741]
[1725533055853,0.41739,2396.0,2395.8,0.41741]
[1725533056049,0.5482,2395.9,2395.8,0.41741]
[1725533058646,0.41735,2396.2,2396.0,0.41737]
[1725533059148,0.5199,2396.2,2396.0,0.41737]
[1725533059452,0.93726,2396.2,2396.0,0.41737]
[1725533059746,0.41736,2396.1,2396.0,0.41737]
[1725533059949,0.41736,2396.1,2395.9,0.41738]
[1725533060441,0.5199,2396.2,2395.9,0.41738]
[1725533060848,0.4174,2396.0,2395.6,2.89]
[1725533061048,0.4174,2396.0,2395.9,0.4174]
[1725533062249,5.21707,2396.0,2395.4,6.6584]
[1725533062454,0.5204,2395.9,2395.4,6.6584]
[1725533062650,0.41744,2395.7,2395.6,0.41744]
[1725533062848,1.56975,2395.8,2395.4,6.6584]
[1725533063056,0.41747,2395.5,2395.4,3.62528]
[1725533063349,0.41745,2395.7,2395.6,0.41745]
[1725533063951,0.41745,2395.6,2395.5,0.41745]
[1725533064151,0.41744,2395.7,2395.6,0.41745]
[1725533064453,0.63695936,2395.7,2395.6,0.41745]
[1725533064658,0.41745,2395.6,2395.5,0.41746]
[1725533064950,0.41744,2395.7,2395.6,0.41744]
[1725533066450,0.41744,2395.7,2395.4,2.89]
[1725533066451,0.41745,2395.6,2395.5,0.41746]
[1725533066648,0.41744,2395.7,2395.6,0.41744]
[1725533067847,0.63694035,2395.7,2395.6,0.41744]
[1725533068047,0.41744,2395.7,2395.6,3.62524]
[1725533068251,1.611,2395.9,2395.8,0.41741]
[1725533068942,3.62517,2396.1,2396.0,0.41738]
[1725533069150,3.84462921,2396.1,2395.7,1.1045]
[1725533069449,0.41738,2396.0,2395.9,0.41739]
[1725533069655,3.2078,2396.1,2395.7,1.1045]
[1725533069854,0.958,2396.0,2395.8,0.41741]
[1725533070156,0.958,2396.0,2395.9,0.4174]
[1725533071459,0.5406,2396.0,2395.9,0.4174]
[1725533071750,3.2078,2396.1,2395.7,1.1045]
[1725533071949,3.62516,2396.1,2396.0,0.41738]
[1725533072149,3.62516,2396.1,2395.9,0.41738]
[1725533072757,0.41739,2396.0,2395.8,0.41741]
[1725533073562,3.62517,2396.1,2395.9,0.4174]
[1725533074859,3.2078,2396.1,2396.0,0.41738]
[1725533075160,3.4272569,2396.1,2396.0,0.41738]
[1725533075363,3.8446269,2396.1,2395.9,0.41739]
[1725533075663,0.4174,2395.9,2395.4,2.89]
[1725533075850,0.76177609,2395.8,2395.7,0.41742]
[1725533076157,1.29437609,2395.8,2395.5,0.5329]
[1725533076351,0.63694685,2395.7,2395.5,0.5329]
[1725533076552,0.41744,2395.7,2395.5,0.5329]
[1725533076761,0.41744,2395.7,2395.6,0.41745]
[1725533076956,0.63693918,2395.7,2395.6,0.41745]
[1725533077356,0.63693826,2395.7,2395.6,0.41745]
[1725533077963,0.41744,2395.7,2395.6,0.41745]
[1725533078252,0.85643599,2395.7,2395.6,0.41745]
[1725533078461,0.63693844,2395.7,2395.6,0.41745]
[1725533078857,0.41743,2395.7,2395.6,0.41745]
[1725533079763,0.63692794,2395.7,2395.6,0.41745]
[1725533080167,0.41743,2395.7,2395.6,0.41745]
[1725533080762,0.63692404,2395.7,2395.6,0.41745]
[1725533080963,0.41743,2395.7,2395.6,0.41745]
[1725533081169,0.63692756,2395.7,2395.6,0.41745]
[1725533081674,0.63692325,2395.7,2395.6,0.41745]
[1725533081976,0.41743,2395.7,2395.6,0.41745]
[1725533082266,0.63692696,2395.7,2395.6,0.41745]
[1725533082466,0.63692696,2395.7,2395.5,0.5329]
[1725533082662,0.41745,2395.6,2395.5,0.95035]
[1725533083863,0.41745,2395.6,2395.5,0.5329]
[1725533084067,0.41745,2395.6,2395.5,0.95037]
[1725533084961,0.41745,2395.6,2395.5,0.5329]
[1725533085161,0.41748,2395.4,2395.3,0.5532]
[1725533085470,0.41751,2395.3,2395.1,0.41753]
[1725533085670,1.04369,2395.5,2395.1,0.41753]
[1725533085671,0.41752,2395.2,2395.1,0.41753]
[1725533086469,0.41751,2395.3,2395.1,0.41753]
[1725533086666,0.41753,2395.2,2395.0,4.42060566]
[1725533087679,0.41753,2395.1,2395.0,4.00306566]
[1725533088963,0.41753,2395.1,2395.0,1.11306566]
[1725533089164,0.41753,2395.1,2395.0,0.54206566]
[1725533092072,0.41753,2395.1,2395.0,0.95961566]
[1725533092270,0.41753,2395.1,2395.0,0.54206566]
[1725533092979,4.59273,2395.1,2395.0,0.00626566]
[1725533093671,5.63657,2395.1,2395.0,0.00626566]
[1725533093875,14.74617574,2395.1,2395.0,0.00626566]
[1725533094071,14.52657,2395.1,2395.0,0.00626566]
[1725533094276,14.74621444,2395.1,2395.0,0.00626566]
[1725533095783,0.41764,2394.5,2394.4,0.5409]
[1725533097183,0.41764,2394.5,2394.3,0.97317]
[1725533097379,0.41764,2394.5,2394.4,0.5841]
[1725533097580,1.53873,2394.6,2394.4,0.5841]
[1725533097875,0.96253,2394.6,2394.4,0.5841]
[1725533098588,0.41764,2394.5,2394.4,0.5841]
[1725533099988,0.41766,2394.4,2394.3,0.5555]
[1725533100394,0.5449,2394.6,2394.3,0.5555]
[1725533100590,0.41766,2394.4,2394.3,0.5555]
[1725533100994,0.41767,2394.3,2394.2,0.00626566]
[1725533102693,4.59447,2394.3,2394.2,0.00626566]
[1725533102897,5.17747,2394.3,2394.2,0.00626566]
[1725533104890,0.5449,2394.6,2394.4,0.41765]
[1725533105198,0.5449,2394.6,2394.2,0.00626566]
[1725533105199,0.41762,2394.6,2394.5,1.0873]
[1725533105495,0.98012,2394.6,2394.5,1.0873]
[1725533105695,0.41762,2394.6,2394.5,1.0873]
[1725533107599,0.41762,2394.6,2394.5,1.50494]
[1725533107798,0.42388566,2394.7,2394.5,1.50494]
[1725533108100,0.00626566,2394.7,2394.6,0.41762]
[1725533108294,0.00626566,2394.7,2394.6,0.99522]
[1725533115002,0.00626566,2394.7,2394.6,4.20302]
[1725533115402,0.42386566,2394.7,2394.6,4.20302]
[1725533115702,0.42386566,2394.7,2394.6,3.7854]
[1725533115899,0.42386566,2394.7,2394.6,4.20302]
[1725533116099,0.42386566,2394.7,2394.6,0.99522]
[1725533116295,0.41762,2394.6,2394.5,1.0873]
[1725533116695,0.97392,2394.6,2394.5,1.0873]
[1725533117606,2.01798,2394.6,2394.5,1.0873]
[1725533117806,2.01798,2394.6,2394.3,0.99367]
[1725533117807,0.41766,2394.4,2394.3,0.99367]
[1725533118603,0.41766,2394.4,2394.3,0.576]
[1725533119010,1.04413,2394.5,2394.2,0.00626566]
[1725533119011,0.41767,2394.3,2394.2,0.00626566]
[1725533122013,0.41766,2394.4,2394.2,0.00626566]
[1725533122312,0.41765,2394.5,2394.2,0.42394566]
[1725533122703,6.6541,2394.6,2394.2,0.42394566]
[1725533122704,0.41766,2394.4,2394.2,0.42394566]
[1725533124709,0.41767,2394.3,2394.2,0.00626566]
[1725533125109,3.62547,2394.3,2394.2,0.00626566]
[1725533126617,8.84646,2394.3,2394.2,0.00626566]
[1725533126817,9.38646,2394.3,2394.2,0.00626566]
[1725533128516,0.41776,2393.8,2393.7,1.717]
[1725533128708,6.0978,2394.0,2393.7,1.717]
[1725533128912,0.41776,2393.8,2393.7,1.717]
[1725533129109,7.14214,2394.0,2393.7,1.717]
[1725533129926,0.41776,2393.8,2393.7,1.717]
[1725533130618,0.41776,2393.8,2393.7,0.5796]
[1725533134922,6.0978,2394.0,2393.7,0.99737]
[1725533135120,0.41775,2393.9,2393.7,0.99737]
[1725533135324,6.0978,2394.0,2393.8,0.95126]
[1725533135325,3.62554,2394.0,2393.8,0.95126]
[1725533135516,3.2078,2394.0,2393.8,0.95126]
[1725533135711,3.2078,2394.0,2393.8,1.50966]
[1725533135911,3.62553,2394.0,2393.8,1.50966]
[1725533137116,1.611,2394.3,2394.2,0.41769]
[1725533137317,3.2078,2394.4,2394.3,0.41767]
[1725533137522,3.4448,2394.6,2394.4,0.41765]
[1725533137523,3.86242,2394.6,2394.4,0.41765]
[1725533137729,0.97242,2394.6,2394.4,0.41765]
[1725533138228,0.5548,2394.6,2394.4,0.41765]
[1725533138423,0.00626566,2394.7,2394.3,0.5782]
[1725533138618,0.00626566,2394.7,2394.6,0.41762]
[1725533138821,0.00626566,2394.7,2394.5,0.41763]
[1725533139428,0.00626566,2394.7,2394.6,0.5369]
[1725533139720,0.00626566,2394.7,2394.6,0.95452]
[1725533139923,0.00626566,2394.7,2394.6,0.5369]
[1725533142031,0.00626566,2394.7,2394.6,0.95452]
[1725533142222,0.00626566,2394.7,2394.6,5.13052]
[1725533143324,0.00626566,2394.7,2394.6,11.13052]
[1725533143528,3.2078,2395.2,2395.0,0.41754]
[1725533143825,0.97468,2395.4,2395.1,1.1052]
[1725533144027,0.63711551,2395.3,2395.1,1.1052]
[1725533144226,3.4472,2395.4,2395.1,1.52273]
[1725533144524,0.21960296,2395.3,2395.1,1.52273]
[1725533144716,3.4472,2395.4,2395.1,1.52273]
[1725533144920,0.21959904,2395.3,2395.1,1.52273]
[1725533145126,3.4472,2395.4,2395.1,1.52273]
[1725533145325,0.637109,2395.3,2395.1,1.1052]
[1725533145521,0.41751,2395.3,2395.1,1.1052]
[1725533146424,3.62531,2395.3,2395.1,1.1052]
[1725533146625,0.41752,2395.2,2395.1,1.1052]
[1725533146832,0.41752,2395.2,2395.0,0.00626566]
[1725533146833,0.41753,2395.1,2395.0,0.00626566]
[1725533148431,0.41753,2395.2,2395.0,0.00626566]
[1725533149628,6.0978,2395.3,2395.0,0.00626566]
[1725533149629,0.41753,2395.1,2395.0,0.00626566]
[1725533149831,3.2078,2395.3,2395.0,0.00626566]
[1725533150137,3.2078,2395.3,2395.2,0.41752]
[1725533150332,3.2078,2395.3,2395.1,0.41752]
[1725533151325,3.2078,2395.3,2395.2,0.95902]
[1725533152628,3.2078,2395.3,2395.2,0.5415]
[1725533152932,7.383,2395.3,2395.0,0.00626566]
[1725533153132,0.41753,2395.2,2395.0,0.00626566]
[1725533153527,3.62531,2395.3,2395.0,0.42380566]
[1725533154124,0.41751,2395.3,2395.0,0.42380566]
[1725533154833,0.41751,2395.3,2395.1,0.41753]
[1725533156735,0.4175,2395.3,2395.1,0.41752]
[1725533157635,0.5715,2395.4,2395.3,0.4175]
[1725533157837,0.98899,2395.4,2395.2,0.41751]
[1725533158133,0.5715,2395.4,2395.3,0.971]
[1725533158333,0.98898,2395.4,2395.3,0.5535]
[1725533159534,0.41748,2395.4,2395.3,0.5535]
[1725533159733,0.59266566,2395.5,2395.3,0.5535]
[1725533159934,0.59266566,2395.5,2395.4,0.41748]
[1725533160141,0.00626566,2395.5,2395.4,0.41748]
[1725533160431,0.00626566,2395.5,2395.4,1.00018]
[1725533160832,0.42373566,2395.5,2395.3,0.5535]
[1725533161039,0.41748,2395.4,2395.3,0.5535]
[1725533161233,0.5864,2395.4,2395.1,1.00022]
[1725533161432,0.4175,2395.3,2395.1,1.00022]
[1725533162032,0.41752,2395.2,2395.1,0.5827]
[1725533162439,0.41751,2395.3,2395.1,1.00022]
[1725533164543,1.00389,2395.4,2395.2,0.4175]
[1725533164736,0.00626566,2395.5,2395.1,0.5827]
[1725533165142,0.00626566,2395.5,2395.4,0.41748]
[1725533170151,0.42373566,2395.5,2395.3,0.41749]
[1725533170350,0.41751,2395.3,2395.1,1.00023]
[1725533171349,0.99469,2395.4,2395.2,0.41752]
[1725533171555,0.41749,2395.4,2395.2,0.41752]
[1725533171859,0.00626566,2395.5,2395.1,1.00022]
[1725533171860,0.4175,2395.3,2395.1,1.00022]
[1725533172047,0.4175,2395.4,2395.2,0.41752]
[1725533172448,0.00626566,2395.5,2395.2,0.41752]
[1725533172744,0.41748,2395.4,2395.2,0.41752]
[1725533173051,0.41749,2395.4,2395.2,0.41752]
[1725533173255,0.41749,2395.4,2395.3,0.575]
[1725533173442,0.00626566,2395.5,2395.4,0.41748]
[1725533173754,0.00626566,2395.5,2395.4,1.00238]
[1725533173951,0.00626566,2395.5,2395.1,0.5827]
[1725533173952,0.41748,2395.4,2395.1,0.5827]
[1725533174253,0.41748,2395.4,2395.2,0.41751]
[1725533175549,0.00626566,2395.5,2395.1,1.1676]
[1725533175755,0.41752,2395.2,2395.1,0.5849]
[1725533175953,0.41752,2395.2,2395.0,0.00626566]
[1725533175954,0.41753,2395.1,2395.0,0.00626566]
[1725533176149,6.20027,2395.1,2395.0,0.00626566]
[1725533176551,0.4176,2394.8,2394.6,0.5475]
[1725533176859,0.5329,2394.7,2394.4,0.5551]
[1725533177062,0.95051,2394.7,2394.4,0.5551]
[1725533177261,0.95051,2394.7,2394.4,0.97275]
[1725533178055,0.5329,2394.7,2394.4,0.97275]
[1725533178260,0.95051,2394.7,2394.4,0.97275]
[1725533179162,0.5329,2394.7,2394.4,0.97275]
[1725533179460,0.5329,2394.7,2394.5,0.41764]
[1725533179866,0.5329,2394.7,2394.6,0.41762]
[1725533180065,0.5329,2394.7,2394.5,0.41763]
[1725533182267,0.5329,2394.7,2394.5,0.41764]
[1725533182559,0.41758,2394.9,2394.6,0.41762]
[1725533183063,0.21966485,2394.8,2394.6,0.41762]
[1725533183463,0.21966485,2394.7,2394.6,0.41762]
[1725533183658,3.7533,2395.0,2394.4,4.48923]
[1725533183865,3.7533,2395.0,2394.8,0.41757]
[1725533183866,0.2196551,2394.9,2394.8,0.41757]
[1725533184662,0.2196551,2394.9,2394.7,0.41759]
[1725533184861,0.2196551,2394.9,2394.5,40.8]
[1725533184862,0.6372551,2394.8,2394.5,40.8]
[1725533185065,0.2196551,2394.7,2394.6,0.41762]
[1725533185562,3.30758,2394.9,2394.7,0.4176]
[1725533185766,0.2196552,2394.8,2394.7,0.4176]
[1725533186674,3.7533,2395.0,2394.9,0.41757]
[1725533186865,3.97291324,2395.0,2394.9,0.41757]
[1725533187361,4.39046324,2395.0,2394.9,0.41757]
[1725533187767,3.97291324,2395.0,2394.9,0.41757]
[1725533187966,3.7533,2395.0,2394.9,0.41757]
[1725533188169,0.76512542,2395.0,2394.9,0.41757]
[1725533189472,1.18268542,2395.0,2394.8,1.50118]
[1725533189675,0.21962542,2394.9,2394.8,1.50119]
[1725533190364,3.62534,2395.1,2394.9,0.41757]
[1725533190566,0.21961607,2395.0,2394.9,0.41757]
[1725533191267,3.62534,2395.1,2394.9,0.41757]
[1725533191474,0.21961614,2395.0,2394.9,0.41757]
[1725533192461,0.21961614,2395.0,2394.9,0.96017]
[1725533194781,0.21960159,2395.0,2394.8,1.50118]
[1725533194972,2.89,2395.1,2394.7,0.4176]
[1725533194973,0.41759,2394.8,2394.7,0.4176]
[1725533195371,1.52738,2394.9,2394.7,0.4176]
[1725533195574,1.1098,2394.9,2394.6,0.41761]
[1725533195766,3.9998,2394.9,2394.6,0.41762]
[1725533195970,0.21964955,2394.8,2394.7,0.4176]
[1725533198163,0.98055,2395.1,2394.7,0.4176]
[1725533198164,3.453,2395.1,2394.7,0.4176]
[1725533198471,0.2196348,2394.8,2394.7,0.4176]
[1725533201472,0.2196348,2394.8,2394.7,4.66942]
[1725533201673,0.5554,2395.2,2394.7,3.2078]
[1725533201873,0.41756,2395.0,2394.8,0.41758]
[1725533202067,0.21961577,2394.9,2394.8,0.41758]
[1725533202782,0.21962098,2395.0,2394.8,16.2738]
[1725533202979,0.00626566,2395.5,2395.4,1.46119]
[1725533203164,0.00626566,2395.5,2395.4,7.55899]
[1725533203366,0.00626566,2395.5,2395.4,54.19713364]
[1725533203673,0.00626566,2395.5,2395.4,59.10529]
[1725533203974,0.00626566,2395.5,2395.4,52.06158]
[1725533204169,0.00626566,2395.5,2395.4,53.15342364]
[1725533204571,0.00626566,2395.5,2395.4,52.06158]
[1725533206572,0.00626566,2395.5,2395.4,58.26564032]
[1725533207678,2.89,2396.5,2395.4,58.26564032]
[1725533207679,3.2078,2397.0,2395.5,1.04367]
[1725533207879,3.2078,2397.0,2396.7,0.41726]
[1725533207880,0.5486,2396.8,2396.7,0.41726]
[1725533208376,1.611,2397.0,2396.9,0.41722]
[1725533208563,1.611,2397.0,2396.8,0.41723]
[1725533208764,2.02821,2397.0,2396.7,0.42351566]
[1725533208966,2.02821,2397.0,2396.7,0.00626566]
[1725533209168,0.41724,2396.8,2396.7,0.00626566]
[1725533209373,12.19924943,2396.9,2395.8,0.5799]
[1725533209679,0.41733,2396.3,2396.0,0.41737]
[1725533209877,6.6542,2396.7,2395.9,2.89]
[1725533210078,0.41731,2396.5,2396.2,0.41733]
[1725533210681,0.41731,2396.5,2396.1,0.00626566]
[1725533210879,0.41731,2396.5,2396.2,0.41733]
[1725533211579,0.5608,2396.6,2396.2,0.41733]
[1725533211776,0.41731,2396.4,2396.1,1.00241566]
[1725533211984,0.41731,2396.4,2396.2,0.41734]
[1725533212591,0.4173,2396.5,2396.2,0.41734]
[1725533212881,0.41731,2396.4,2396.2,0.41734]
[1725533213086,0.41731,2396.5,2396.2,0.41734]
[1725533214281,0.41731,2396.4,2396.2,0.41734]
[1725533214474,0.41731,2396.4,2396.1,0.58506566]
[1725533214475,0.41731,2396.4,2396.1,1.00241566]
[1725533215487,0.41731,2396.4,2396.1,0.58506566]
[1725533215687,0.4173,2396.5,2396.2,0.41734]
[1725533216582,0.41731,2396.4,2396.2,0.5376]
[1725533216978,0.41731,2396.4,2396.1,1.00241566]
[1725533217175,0.5732,2396.3,2396.1,1.00241566]
[1725533218282,0.41731,2396.4,2396.2,0.41734]
[1725533218487,0.98761,2396.5,2396.2,0.41734]
[1725533218687,0.41731,2396.4,2396.2,0.5595]
[1725533219382,0.5703,2396.5,2396.2,0.5595]
[1725533219890,0.41732,2396.4,2396.2,0.5595]
[1725533220486,0.5703,2396.5,2396.1,0.00626566]
[1725533220487,0.41734,2396.2,2396.1,0.00626566]
[1725533220689,2.89,2396.2,2394.8,1.08721411]
[1725533220895,2.89,2396.2,2394.9,0.5908]
[1725533220896,3.2078,2395.3,2394.9,0.5908]
[1725533221078,1.04384,2395.1,2394.7,2.89]
[1725533221281,0.41758,2394.9,2394.5,4.21623]
[1725533221587,0.41758,2394.9,2394.5,3.80486566]
[1725533221790,0.42384566,2394.9,2394.5,4.22249566]
[1725533222090,0.00626566,2394.9,2394.6,0.41762]
[1725533222288,0.42383566,2394.9,2394.5,4.22249566]
[1725533222488,0.00626566,2394.9,2394.6,0.41762]
[1725533223285,0.00626566,2394.9,2394.7,0.4176]
[1725533223484,0.00626566,2394.9,2394.8,0.41759]
[1725533223892,0.00626566,2394.9,2394.8,7.48359]
[1725533224795,0.00626566,2394.9,2394.8,4.59359]
[1725533226495,0.00626566,2394.9,2394.8,0.41759]
[1725533227694,0.00626566,2394.9,2394.5,3.80486566]
[1725533227896,0.42384566,2394.9,2394.6,0.41762]
[1725533228089,0.42384566,2394.9,2394.5,4.22249566]
[1725533228287,0.42384566,2394.9,2394.6,0.41761]
[1725533228486,0.00626566,2394.9,2394.6,0.41762]
[1725533228795,0.00626566,2394.9,2394.7,0.4176]
[1725533230894,0.00626566,2394.9,2394.5,3.80486566]
[1725533231088,0.00626566,2394.9,2394.8,0.41759]
[1725533231785,0.00626566,2394.9,2394.6,2.89]
[1725533231786,0.00626566,2394.9,2394.7,0.41759]
[1725533231983,0.42383566,2394.9,2394.7,0.41759]
[1725533232183,0.42383566,2394.9,2394.6,0.41761]
[1725533232396,0.42383566,2394.9,2394.5,3.80486566]
[1725533232397,0.42383566,2394.9,2394.7,0.4176]
[1725533233197,0.42383566,2394.9,2394.5,3.80486566]
[1725533233198,0.41759,2394.8,2394.5,3.80486566]
[1725533233393,0.41759,2394.8,2394.5,4.22248566]
[1725533233688,0.41759,2394.8,2394.6,0.41762]
[1725533234991,0.41759,2394.8,2394.5,1.01469566]
[1725533235589,0.41759,2394.8,2394.5,0.59706566]
[1725533235797,3.62542,2394.6,2394.5,0.00626566]
[1725533236093,3.2078,2394.6,2394.5,0.00626566]
[1725533236295,3.2078,2394.6,2394.5,0.42390566]
[1725533238899,0.41761,2394.7,2394.5,0.42390566]
[1725533239492,0.4176,2394.8,2394.6,0.41762]
[1725533239689,0.41759,2394.8,2394.6,0.41761]
[1725533239891,0.41759,2394.8,2394.5,0.00626566]
[1725533239892,0.42384566,2394.9,2394.7,0.9804]
[1725533240402,0.42384566,2394.9,2394.7,0.5628]
[1725533240403,0.41759,2394.8,2394.7,0.5628]
[1725533241887,0.42384566,2394.9,2394.7,0.5628]
[1725533242595,0.42384566,2394.9,2394.7,0.9804]
[1725533242803,0.00626566,2394.9,2394.7,0.9804]
[1725533243099,0.42383566,2394.9,2394.7,0.9804]
[1725533243304,0.42383566,2394.9,2394.7,0.5628]
[1725533243599,0.41759,2394.8,2394.7,0.5628]
[1725533243804,0.42384566,2394.9,2394.7,0.9804]
[1725533244803,0.42384566,2394.9,2394.7,0.5628]
[1725533245998,0.42384566,2394.9,2394.7,0.9804]
[1725533247417,0.41759,2394.8,2394.7,0.5628]
[1725533248201,0.00626566,2394.9,2394.8,0.41759]
[1725533248396,0.00626566,2394.9,2394.8,0.95919]
[1725533248810,0.42383566,2394.9,2394.8,0.5416]
[1725533249896,0.42383566,2394.9,2394.7,0.5628]
[1725533249897,0.41762,2394.7,2394.5,0.42389566]
[1725533250096,0.41762,2394.7,2394.5,0.00626566]
[1725533250300,0.4176,2394.8,2394.6,0.41762]
[1725533250497,0.41761,2394.7,2394.5,0.00626566]
[1725533250794,0.41762,2394.7,2394.5,0.00626566]
[1725533250994,0.41762,2394.6,2394.5,0.00626566]
[1725533251394,0.00626566,2394.9,2394.5,0.00626566]
[1725533251606,1.00904566,2394.9,2394.7,0.4176]
[1725533252015,0.00626566,2394.9,2394.8,0.41759]
[1725533253003,0.00626566,2394.9,2394.8,4.59359]
[1725533254109,0.00626566,2394.9,2394.8,0.41759]
[1725533263611,0.42383566,2394.9,2394.8,0.41759]
[1725533263812,0.00626566,2394.9,2394.8,0.41759]
[1725533265917,0.42383566,2394.9,2394.8,0.98339]
[1725533266123,0.00626566,2394.9,2394.8,0.98339]
[1725533269631,0.42383566,2394.9,2394.8,0.98339]
[1725533269826,0.42383566,2394.9,2394.6,1.63082117]
[1725533269827,0.00626566,2394.9,2394.6,3.13564528]
[1725533270018,3.6254,2394.7,2394.6,1.50482411]
[1725533270316,3.2078,2394.7,2394.6,0.41761]
[1725533271026,3.6254,2394.7,2394.6,0.41761]
[1725533271619,0.41762,2394.6,2394.5,0.54916566]
[1725533271821,9.11258,2394.6,2394.5,0.00626566]
[1725533272017,15.11258,2394.6,2394.5,0.00626566]
[1725533274335,14.06852,2394.6,2394.5,0.00626566]
[1725533274534,8.06852,2394.6,2394.5,0.00626566]
[1725533281035,11.27632,2394.6,2394.5,0.00626566]
[1725533285347,3.2078,2394.6,2394.5,0.42390566]
[1725533285537,3.47036566,2394.9,2394.5,0.42390566]
[1725533285538,0.97543566,2394.9,2394.7,0.4176]
[1725533285737,0.97543566,2394.9,2394.8,0.5478]
[1725533285937,0.55786566,2394.9,2394.8,0.96539]
[1725533286248,0.97543566,2394.9,2394.8,0.5478]
[1725533289037,6.0978,2395.6,2394.9,1.04393]
[1725533289239,0.5491,2395.4,2394.9,1.04393]
[1725533289438,0.5491,2395.4,2394.8,6.6456]
[1725533289439,3.2078,2395.3,2395.0,0.5382]
[1725533289645,0.41753,2395.1,2395.0,0.5382]
[1725533289840,3.30753,2395.2,2395.0,0.5382]
[1725533290038,0.41753,2395.2,2395.0,0.95575]
[1725533290246,0.00626566,2395.3,2395.0,0.5382]
[1725533290447,0.00626566,2395.3,2395.2,0.41752]
[1725533290847,0.00626566,2395.3,2395.1,0.5799]
[1725533291052,0.00626566,2395.3,2395.2,0.41752]
[1725533292849,0.42376566,2395.3,2395.1,0.99742]
[1725533293148,0.00626566,2395.3,2395.2,0.41752]
[1725533293855,0.42376566,2395.3,2395.1,0.99742]
[1725533295859,3.21406566,2395.3,2395.0,0.5382]
[1725533296058,3.30753,2395.1,2395.0,0.5382]
[1725533297854,0.41757,2394.9,2394.8,0.5478]
[1725533298059,3.30757,2394.9,2394.8,0.5478]
[1725533298856,0.41756,2395.0,2394.8,0.96539]
[1725533299057,3.30755,2395.1,2394.9,0.41757]
[1725533299451,0.41755,2395.1,2395.0,0.41755]
[1725533299650,0.41753,2395.1,2395.0,0.41755]
[1725533299854,6.10406566,2395.3,2395.0,0.41755]
[1725533299855,0.41753,2395.2,2395.0,0.41755]
[1725533300056,0.41753,2395.2,2395.1,0.5908]
[1725533301755,4.59273,2395.2,2395.1,0.5908]
[1725533302065,0.41753,2395.1,2395.0,0.5559]
[1725533303360,0.41752,2395.2,2395.0,0.97344]
[1725533304963,0.41752,2395.2,2395.0,0.5559]
[1725533305158,0.41752,2395.2,2395.0,0.97344]
[1725533306061,0.41753,2395.1,2395.0,0.97344]
[1725533306265,0.41753,2395.2,2395.0,0.97344]
[1725533307659,10.273,2395.1,2394.8,0.96538]
[1725533307966,2.89,2394.9,2394.8,0.96539]
[1725533308571,3.30757,2394.9,2394.8,0.5478]
[1725533310065,2.89,2394.9,2394.8,0.5478]
[1725533310876,0.41755,2395.1,2394.8,0.96538]
[1725533311569,3.62535,2395.1,2394.8,0.5478]
[1725533313472,0.41755,2395.0,2394.8,0.5478]
[1725533313673,0.41757,2394.9,2394.8,0.5478]
[1725533313869,0.97877,2394.9,2394.8,0.5478]